Cogmind - Beta 16.1 @@@ ROGUE MODE // 2026.03.07 @ 21:02:19 Player: OniAn Result: Destroyed by G-34 Mercenary with Small Laser Performance ------------- Evolutions (0) 0 Regions Visited (1) 200 Robots Destroyed (21) 105 Value Destroyed (560) 560 Prototype IDs (2) 40 Alien Tech Used (0) 0 Bonus (0) 0 TOTAL SCORE: 905 Bonus ------- None Cogmind --------- Core Integrity 0/250 Matter 270/300 Energy 63/125 System Corruption 5% Temperature Cool (8) Movement Hovering (56) Location -10/Materials Parts ------- > --- POWER (1) -------- Light Ion Engine > --- PROPULSION (2) --- Hover Unit Hover Unit > --- UTILITY (2) ------ Small Storage Unit Visual Processing Unit > --- WEAPON (2) ------- Hammer > --- INVENTORY (8) ---- Wheel Wheel Signal Interpreter Grenade Launcher Grenade Launcher Grenade Launcher Datajack Peak State ------------ > --- POWER ------------ Light Ion Engine > --- PROPULSION ------- Aluminum Leg Aluminum Leg > --- UTILITY ---------- Small Storage Unit Visual Processing Unit > --- WEAPON ----------- Grenade Launcher Hammer > --- INVENTORY -------- Wheel Wheel Signal Interpreter Grenade Launcher Grenade Launcher Datajack [Rating: 8] Favorites ----------- Power Ion Engine Engine Ion Engine Propulsion Light Treads Treads Light Treads Leg Aluminum Leg Wheel Wheel Hover Unit Hover Unit Utility Small Storage Unit Storage Small Storage Unit Processor Visual Processing Unit Weapon Small Laser Energy Gun Small Laser Launcher Grenade Launcher Impact Weapon Hammer Build | -11 -10 ------- Run | Yrd Mat Slots Evolved . | . . Power . | . . Propulsion . | . . Utility . | . . Weapon . | . . Parts Attached 20 | 9 11 Power 3 | 2 1 Engine 3 | 2 1 Core . | . . Reactor . | . . Propulsion 8 | 4 4 Treads 2 | 2 . Leg 2 | . 2 Wheel 2 | 2 . Hover 2 | . 2 Flight . | . . Utility 2 | 1 1 Device . | . . Storage 1 | 1 . Processor 1 | . 1 Hackware . | . . Protection . | . . Artifact . | . . Weapon 7 | 2 5 Energy Gun 4 | 2 2 Energy Cannon . | . . Ballistic Gun . | . . Ballistic Cannon . | . . Launcher 2 | . 2 Special Weapon . | . . Impact Weapon 1 | . 1 Slashing Weapon . | . . Piercing Weapon . | . . Special Melee Weapon . | . . Unidentified Prototypes . | . . Corrupted Parts 1 | . 1 System Corruption 5 | . 5 Parts Lost 9 | . 9 Power 2 | . 2 Propulsion 4 | . 4 Utility . | . . Weapon 3 | . 3 Highest Loss Streak 4 | . 4 To Critical Strikes . | . . Average Backups 5 | 2 5 Power . | . . Propulsion 1 | 1 2 Utility . | . . Weapon 1 | . 1 Tool/Special . | . . Unused Backups 4 | . 4 Power . | . . Propulsion . | . . Utility 1 | . 1 Weapon 2 | . 2 Tool/Special 1 | . 1 Average Slot Usage (%) 75 | . 75 Engine 5 | . 5 Treads 13 | . 13 Leg 6 | . 6 Storage 14 | . 14 Processor 6 | . 6 Energy Gun 18 | . 18 Launcher 4 | . 4 Impact Weapon 4 | . 4 Peak Build Rating 8 | 6 8 Average Rating 5 | 3 5 On Entrance 3 | . 6 Avg Prop Armor Cover (%) 21 | . 21 Naked Turns . | . . Heaviest Build 13 | 13 13 Greatest Support 40 | 40 40 Greatest Overweight (x) 4 | . 4 Average Overweight (x) . | . . Largest Inventory Capacity 8 | 8 8 Average Capacity 7 | 6 8 Most Carried 7 | 3 7 Average Carried 5 | 2 5 Final Capacity 8 | 8 8 Final Carried 7 | 3 7 Class Distribution -------------------- 100% | Mutant Dominant Class ---------------- Mutant | -10/Materials Resources | -11 -10 ----------- Run | Yrd Mat Matter Collected 463 | 173 290 Remotely . | . . Salvage Created 675 | . 675 Parts 27 | . 27 Haulers Intercepted . | . . Recyclers Shooed . | . . Parts Field Recycled . | . . Retrieved Matter . | . . Parts Self-Destructed . | . . Prevented . | . . Parts Restored . | . . Kills | -11 -10 ------- Run | Yrd Mat Combat Hostiles Destroyed 19 | . 19 Melee 4 | . 4 Guns 7 | . 7 Classes Destroyed 4 | . 4 Operator 1 | . 1 Watcher 1 | . 1 Swarmer 6 | . 6 Grunt 13 | . 13 Best Kill Streak 3 | . 3 Combat Bots Only 3 | . 3 Max Kills in Single Turn 2 | . 2 Gunslinging . | . . Exploded . | . . Melee 1 | . 1 Uniques/NPCs Destroyed . | . . Combat | -11 -10 -------- Run | Yrd Mat Hostile Shots Fired 132 | . 132 Missed 23 | . 23 Hits 109 | . 109 Projectile 109 | . 109 Critical Strikes 2 | . 2 Damage Taken 1254 | . 1254 Core 252 | . 252 Absorbed by Shields . | . . Core Remaining (%) 100 | 100 . Volleys Fired 40 | . 40 Largest 2 | . 2 Hottest 80 | . 80 Shots Fired 71 | . 71 Gun 71 | . 71 Cannon . | . . Launcher . | . . Special . | . . Kinetic . | . . Thermal 52 | . 52 Explosive . | . . Electromagnetic 19 | . 19 Robot Hit Streak 15 | . 15 Robot Miss Streak 3 | . 3 Penetration Max . | . . Secondary Targets 1 | . 1 Max Gunslinging Chain 1 | . 1 Shots Hit Robots 81 | . 81 Core Hits 19 | . 19 Critical Kills . | . . Critical Parts Destroyed 8 | . 8 Critical Strikes 8 | . 8 Smash 8 | . 8 Melee Attacks 39 | . 39 Impact 39 | . 39 Slashing . | . . Piercing . | . . Sneak Attacks 1 | . 1 Combat Hostiles . | . . Follow-up Attacks . | . . Damage Inflicted 1446 | . 1446 Guns 656 | . 656 Cannons . | . . Explosions . | . . Melee 790 | . 790 Ramming . | . . Kinetic . | . . Thermal 456 | . 456 Explosive . | . . Electromagnetic 200 | . 200 Impact 790 | . 790 Slashing . | . . Piercing . | . . Highest Corruption 5 | . 5 Average Corruption 5 | . 5 Corruption Purged . | . . Corruption Blocked . | . . Overload Shots . | . . Overflow Damage 287 | . 287 Projectiles . | . . Explosions . | . . Melee 287 | . 287 Knockbacks 5 | . 5 Impact 5 | . 5 Kinetic . | . . Secondary . | . . Self-Inflicted Damage . | . . Shots . | . . Rammed . | . . Targets Rammed . | . . Kicked . | . . Crushed . | . . Highest Temperature 345 | . 345 Average Temperature 151 | . 151 Received Heat Transfer 618 | . 618 Effects 3 | . 3 Matter Decay 2 | . 2 Damage (minor) 1 | . 1 Siege Activations . | . . Martial Activations . | . . Shielding Activations . | . . Robots Disrupted . | . . Combat Hostiles . | . . Robots Corrupted 8 | . 8 Combat Hostiles 8 | . 8 Parts Fried 5 | . 5 Impact Corruptions 15 | . 15 Robots Melted . | . . Combat Hostiles . | . . Parts Melted 2 | . 2 Heat Transferred 1025 | . 1025 Parts Sabotaged . | . . Parts Stolen . | . . Parts Stripped . | . . Power Chain Reactions . | . . Alert | -11 -10 ------- Run | Yrd Mat Maximum Alert Level . | . . Low Security (%) 100 | 100 100 Level 1 . | . . Level 2 . | . . Level 3 . | . . Level 4 . | . . Level 5 . | . . High Security . | . . Max Security . | . . Peak Influence 187 | . 187 Initial . | . . Average 36 | . 40 Influence Increases 597 | . 597 Destroy 0b10 Robot/C 380 | . 380 Destroy 0b10 Robot/NC 10 | . 10 Destroy Leader 92 | . 92 Successful Hack 10 | . 10 Lose Combat Pursuer 105 | . 105 Influence Decreases 416 | . 416 Time Decay 326 | . 326 Lost Part 90 | . 90 Squads Dispatched 5 | . 5 Investigation 2 | . 2 Extermination . | . . Reinforcement 3 | . 3 Assault . | . . Garrison . | . . Intercept . | . . Searches Triggered . | . . Construction Impeded . | . . Haulers Reinforced . | . . Active Scanning Responses . | . . Cargo Convoy Interrupts . | . . Stealth | -11 -10 --------- Run | Yrd Mat Distress Signals 2 | . 2 Communications Jammed . | . . Distress Signals . | . . Times Spotted 33 | . 33 Peak Tracking Total 6 | . 6 Tactical Retreats 4 | . 4 Traps | -11 -10 ------- Run | Yrd Mat Traps Triggered 1 | . 1 Indirectly . | . . Trap Hack Attempts . | . . Triggered . | . . Disarmed . | . . Reprogrammed . | . . Reused . | . . Traps Extracted . | . . Installed . | . . Triggered . | . . Machines | -11 -10 ---------- Run | Yrd Mat Machines Disabled . | . . Max in Single Turn . | . . Machines Repaired . | . . Machines Dismantled . | . . Machines Sabotaged . | . . Overloaded Fab Kills . | . . Hacking | -11 -10 --------- Run | Yrd Mat Machines Accessed 3 | . 3 Terminals 3 | . 3 Fabricators . | . . Repair Stations . | . . Recycling Units . | . . Scanalyzers . | . . Garrison Access . | . . Total Hacks 5 | . 5 Successful 3 | . 3 Failed 2 | . 2 Catastrophic . | . . Database Lockouts . | . . Manual 3 | . 3 Terminals 5 | . 5 Fabricators . | . . Repair Stations . | . . Recycling Units . | . . Scanalyzers . | . . Garrison Access . | . . Terminal Hacks 1 | . 1 Prototype ID Bank 1 | . 1 Fabricator Hacks . | . . Repair Station Hacks . | . . Recycling Unit Hacks . | . . Scanalyzer . | . . Garrison Access Hacks . | . . Unauthorized Hacks 2 | . 2 Terminals 2 | . 2 Botnet 2 | . 2 Fabricators . | . . Repair Stations . | . . Recycling Units . | . . Scanalyzers . | . . Garrison Access . | . . Data Cores Recovered . | . . Used . | . . Hacking Detections 2 | . 2 Full Trace Events . | . . Feedback Events . | . . Feedback Blocked . | . . Robot Schematics Acquired . | . . Robots Built . | . . Authchips . | . . Time . | . . Total Robot Build Rating . | . . Part Schematics Acquired . | . . Parts Built . | . . Authchips . | . . Time . | . . Total Part Build Rating . | . . Part Studies Acquired . | . . Parts Repaired . | . . Time . | . . Parts Recycled . | . . Recycled Matter . | . . Retrieved Matter . | . . Retrieved Components . | . . Parts Scanalyzed . | . . Part Schematics Acquired . | . . Parts Damaged . | . . Bothacking | -11 -10 ------------ Run | Yrd Mat Used RIF Installer . | . . Robots Hacked . | . . Non-combat . | . . Combat . | . . Robot Hacks Applied . | . . Relay Couplers Released . | . . Fabnet Peak Effective % . | . . Robots Rewired . | . . Allies Hacked . | . . Hacks Repelled . | . . Allies | -11 -10 -------- Run | Yrd Mat Total Allies . | . . Largest Group . | . . Highest-Rated Group . | . . Highest-Rated Ally . | . . Total Orders . | . . Ally Attacks . | . . Total Damage . | . . Kills . | . . Allies Corrupted . | . . Allies Melted . | . . Intel | -11 -10 ------- Run | Yrd Mat Active Infowar (turns) 510 | . 510 Optics 510 | . 510 Robot Analysis Total . | . . Derelict Logs Recovered . | . . Drone Launches . | . . Drone Recoveries . | . . Exploration | -11 -10 ------------- Run | Yrd Mat Turns Passed 1114 | 97 1017 Spaces Moved 568 | 63 505 Core 31 | 5 26 Treads 385 | 44 341 Legs 128 | . 128 Wheels 14 | 14 . Hover 10 | . 10 Flight . | . . Fastest Speed 50 | 50 56 Average Speed 148 | 133 149 Slowest Speed 250 | 160 250 Overloaded Moves . | . . Propulsion Burnouts . | . . Robots Hopped . | . . Potential Cave-ins . | . . Cave-ins Triggered . | . . Exploration Rate (%) 41 | 4 78 Regions Visited 1 Branch Regions . Pre-discovered Areas . | . . Known Exits Taken . | . . Unknown Exits Taken 1 | 1 . Scrap Searched . | . . Spaces Dug . | . . Terrain Destroyed . | . . Melee . | . . Projectile . | . . AOE . | . . Terrain Rammed . | . . Walls Destroyed . | . . Machines Disabled . | . . Actions | -11 -10 --------- Run | Yrd Mat Total 696 | 73 623 Wait 18 | . 18 Move 567 | 62 505 Hop . | . . Pick Up 7 | . 7 Fast Attach 14 | 8 6 Attach 4 | . 4 Detach 3 | 2 1 Swap 3 | 1 2 Drop 1 | . 1 Fire 40 | . 40 Melee 39 | . 39 Ram . | . . Kick . | . . Crush . | . . Escape Stasis . | . . Rewire . | . . Trap . | . . Miscellaneous . | . . Route ------- -11/Scrapyard -10/Materials (discovered 3 exits: [*Mat x2] / [*Min]) History --------- Turn | Location | Event 7 | -11/Scrapyard | Discovered new exit (range 16) 98 | -11/Scrapyard | Entered Materials 98 | -10/Materials | Discovered new exit (range 14) 308 | -10/Materials | Build established: Mutant 449 | -10/Materials | Lost 4 parts (1p1n2w) 536 | -10/Materials | Discovered new exit (range 16) 778 | -10/Materials | Core integrity fell below 50% 807 | -10/Materials | Discovered new exit (range 17) 1046 | -10/Materials | Core integrity fell below 20% 1113 | -10/Materials | Lost 3 parts (2n1w) 1115 | -10/Materials | Destroyed by G-34 Mercenary with Small Laser Last Messages --------------- 01063_ S-10 Pest knocked back. 01066_ S-10 Pest misfires. 01077_ Destroyed Lgt. Ion Engine. 01077_ Destroyed Flight Unit. 01077_ S-10 Pest system corrupted by crushing effect. 01077_ S-10 Pest destroyed. 01082_ Aluminum Leg destroyed. 01083_ S-10 Pest destroyed. 01088_ Destroyed Flight Unit. 01088_ S-10 Pest system corrupted by crushing effect. 01089_ S-10 Pest system terminally corrupted. 01089_ Flight Unit fried. 01105_ Acquired Hover Unit. 01113_ Acquired Corrupted Lgt. Ion Engine. 01113_ Integrated Corrupted Lgt. Ion Engine (+5). 01113_ Corrupted Lgt. Ion Engine temporarily disabled. Map ----- +----------------------------------------------------+ | | | | | | | | | | | | | | | | | | | | | | | | | | | | | ?????????????????????????????????????????????????? | | ?????????????????????????????????????????????????? | | ?????????????????????????????????????????????????? | | ?????????????????????????????????????????????????? | | ??????????????????????###########????????????????? | | ??????????????????????# #?#???####???????? | | ??????????????????????# ===#? ?? [#???????? | | ????????????????###+#?# = ##" """ #???????? | | ?????????######## # = ##" """ #???????? | | ???????? # ##" """ #???????? | | ???????? " g% ##T #???????? | | ???????? ] # @ = ##" """ #???????? | | ?????????######## ??# %[ ##" """ #???????? | | ????????????????##????#####+######" """ ######### | | ??????????????????????????#%#????# # # | | ??????????????????????????# #????#[ | # # | | ??????????????????????????# #????# %* # # | | ??????????????????????????# #???######+#+# # | | ?????????????????????######+##### ==% # # | | ?????????????????????# + + # | | ?????????????????????# ## # !!# | | ?????????????????????# ## ###### ! # | | ?????????????????????# ## #????# # | | ?????????????????????# ## ###### # | | ?????????????????????# ## + # | | ?????????????????????# ## ############# | | ?????????????????????# ## #????????#T"# | | ?????????????????????# ## ########## "# | | ?????????????????????####+###### | | ?????????????????? | | ?????????????????? | | ?????????????????? | | ?????????????????? ### | | ???????????????????????# #### | | ??????????????????????# ????# | | ??????????????????????# ?????# | +----------------------------------------------------+ Best States ------------- Heat Dissipation 25 Energy Generation 10 Energy Capacity 250 Matter Stores 300 Matter Capacity 300 Sight Range 18 Terrain Scan Density 10 Evasion (%) 55 Recoil Reduction 2 Item Schematics ----------------- None Robot Schematics ------------------ None Fabricated ------------ Nothing Repaired ---------- Nothing Studied --------- None Alien Tech Used ----------------- None Achievements -------------- None Challenges ------------ None Game ------ Seed ExperimentalZeronetTrident Manual? 0 Play Time 00:13:46 Cumulative 48.6 hours Start 2026.03.07 @ 20:43:04 End 2026.03.07 @ 21:02:19 Sessions 1 Manual Loads 0 Difficulty Rogue Special Mode None Game No. 66 Rogue 42 Adventurer 24 Explorer 0 Win Type - Total 0 Types 0/0/0/0/0/0/0/0/0/0 Lore% 33 Gallery% 29 Achievement% 23 Wizard Run 0 Options --------- Layout 1 ASCII 0 Keyboard 1 Movement Arrows Keybinds 0 Fullscreen 1 Font 24/Smallcaps Map View 50x35 Zoom Use 0% Tactical HUD 1 Map Filters NONE Filters NONE Steam 1 RUN: d1ed191d-ae6a-481c-ba94-497ad96830b8